bitfinex/quotes_SOLUSD_20250507
["timestamp","ask_amount","ask_price","bid_price","bid_amount"]
[1746620167721,6.7865626,147.35,147.32,9.88863855]
[1746620168733,32.78625941,147.36,147.32,9.88863855]
[1746620168937,32.78518116,147.38,147.32,9.88863855]
[1746620169310,49.74813407,147.38,147.32,9.88863855]
[1746620186854,32.78518116,147.38,147.32,16.67655622]
[1746620187152,32.78518116,147.38,147.32,9.88863855]
[1746620189255,49.74813407,147.38,147.32,9.88863855]
[1746620200638,26.0,147.35,147.32,8.35033855]
[1746620201468,6.78702321,147.34,147.32,8.35033855]
[1746620211376,157.99524886,147.33,147.32,8.35033855]
[1746620213579,146.13308387,147.33,147.32,8.35033855]
[1746620214077,144.48748387,147.33,147.32,8.35033855]
[1746620214270,6.78748387,147.33,147.32,8.35033855]
[1746620215170,32.78748387,147.33,147.32,8.35033855]
[1746620216376,31.65013273,147.33,147.32,8.35033855]
[1746620216674,45.8512686,147.33,147.32,8.35033855]
[1746620217679,55.11516556,147.33,147.32,8.35033855]
[1746620218461,56.65336556,147.33,147.32,8.35033855]
[1746620220782,72.61336556,147.33,147.32,3.73315337]
[1746620220981,44.64964886,147.29,147.28,0.9670098]
[1746620221179,60.03095572,147.29,147.28,0.9670098]
[1746620221379,69.69729133,147.29,147.28,0.9670098]
[1746620221779,77.43859133,147.29,147.24,9.77272727]
[1746620222086,44.64964886,147.25,147.24,9.77272727]
[1746620222280,60.13354582,147.25,147.24,3.43792727]
[1746620222482,76.5910529,147.25,147.24,3.43792727]
[1746620222684,42.45750708,147.25,147.24,3.43792727]
[1746620222873,32.79117147,147.25,147.24,3.43792727]
[1746620229776,6.79084759,147.26,147.24,3.43792727]
[1746620230997,6.79039919,147.27,147.24,3.43792727]
[1746620232802,6.78978815,147.28,147.24,3.43792727]
[1746620233788,16.44737612,147.28,147.24,3.43792727]
[1746620238407,9.66633561,147.27,147.24,3.43792727]
[1746620239808,6.7907103,147.26,147.24,3.43792727]
[1746620241794,16.97447039,147.28,147.24,3.43792727]
[1746620241795,23.76425854,147.28,147.24,3.43792727]
[1746620243105,6.78978815,147.28,147.24,3.43792727]
[1746620245118,16.44737612,147.28,147.24,3.43792727]
[1746620246004,6.78978815,147.28,147.24,3.43792727]
[1746620257424,32.78945435,147.29,147.24,3.43792727]
[1746620257608,32.78945435,147.29,147.24,10.22927144]
[1746620258627,9.66633561,147.32,147.25,1.6586]
[1746620258806,6.78748387,147.33,147.25,1.6586]
[1746620259118,6.78748387,147.33,147.25,17.7186]
[1746620259119,32.78748387,147.33,147.25,17.7186]
[1746620259825,32.78748387,147.33,147.26,6.7907103]
[1746620263627,16.96753393,147.35,147.26,6.7907103]
[1746620263823,6.78610206,147.36,147.27,18.64964886]
[1746620264030,32.78610206,147.36,147.27,18.64964886]
[1746620264808,32.78610206,147.36,147.28,6.78978815]
[1746620265125,6.78610206,147.36,147.29,7.9327]
[1746620265527,6.78426051,147.4,147.3,34.70964886]
[1746620266415,26.0,147.39,147.3,34.70964886]
[1746620266727,32.78518116,147.38,147.31,6.7884054]
[1746620267601,26.0,147.38,147.32,1.5223]
[1746620268833,26.0,147.38,147.33,6.78748387]
[1746620269730,32.78518225,147.38,147.33,6.78748387]
[1746620270432,26.0,147.38,147.33,6.78748387]
[1746620270734,6.78481467,147.39,147.33,6.78748387]
[1746620270914,7.7901,147.46,147.36,1.554]
[1746620271224,6.78195998,147.45,147.37,16.06]
[1746620271419,6.78195998,147.45,147.38,18.64964886]
[1746620271731,6.78058041,147.48,147.38,18.64964886]
[1746620272638,6.77920141,147.51,147.42,18.64964886]
[1746620272815,32.77920141,147.51,147.43,6.78288001]
[1746620273019,49.72720493,147.51,147.42,16.06]
[1746620273215,23.72720493,147.51,147.42,16.06]
[1746620273642,49.72720493,147.51,147.42,16.06]
[1746620273838,49.72720493,147.51,147.42,22.84298508]
[1746620274317,23.72720493,147.51,147.42,22.84298508]
[1746620274518,6.77920141,147.51,147.42,22.84298508]
[1746620274717,6.77920141,147.51,147.43,18.64964886]
[1746620274920,6.77920141,147.51,147.43,101.14964886]
[1746620275844,6.77874186,147.52,147.44,6.78241996]
[1746620276145,23.72559652,147.52,147.42,22.84327151]
[1746620277332,23.72559652,147.52,147.42,16.06]
[1746620277532,26.0,147.49,147.42,16.06]
[1746620278847,26.0,147.49,147.42,22.84321304]
[1746620279041,6.78058041,147.48,147.42,22.84321304]
[1746620280442,32.77920141,147.51,147.42,22.84321304]
[1746620281454,49.72720493,147.51,147.42,16.06]
[1746620281622,26.0,147.48,147.42,16.06]
[1746620281823,163.7,147.47,147.39,1.554]
[1746620282028,171.8545,147.47,147.38,16.14]
[1746620282538,137.7,147.46,147.38,16.14]
[1746620284950,6.78195998,147.45,147.38,16.14]
[1746620285130,23.73685994,147.45,147.36,1.5901]
[1746620285328,26.0,147.41,147.34,16.14]
[1746620287551,6.78426051,147.4,147.34,16.14]
[1746620297060,6.78426051,147.4,147.34,22.9269838]
[1746620299659,6.78334011,147.42,147.35,18.64964886]
[1746620304163,6.78334011,147.42,147.36,6.78610206]
[1746620304863,6.78334011,147.42,147.34,98.64]
[1746620305069,6.78334011,147.42,147.35,25.4361992]
[1746620307655,6.78334011,147.42,147.35,6.78655034]
[1746620314774,23.7416904,147.42,147.34,22.9269148]
[1746620314975,31.5304904,147.42,147.34,22.9269148]
[1746620315380,31.5304904,147.42,147.34,16.14]
[1746620315571,26.0,147.39,147.34,16.14]
[1746620317579,6.78518116,147.38,147.34,16.14]
[1746620323821,32.7848759,147.39,147.34,22.92698387]
[1746620328215,32.7848759,147.39,147.34,16.14]
[1746620332213,32.7848759,147.39,147.34,22.92694095]
[1746620334528,32.7848759,147.39,147.33,6.78748387]
[1746620336632,32.7848759,147.39,147.32,22.94787988]
[1746620338521,26.0,147.39,147.32,22.94787988]
[1746620338818,26.0,147.39,147.32,39.9177414]
[1746620339708,6.784005,147.41,147.33,18.64964886]
[1746620339919,32.784005,147.41,147.33,18.64964886]
[1746620341233,32.784005,147.41,147.34,6.78702321]
[1746620346816,32.72380961,147.41,147.34,6.78702321]
[1746620351453,14.57236621,147.42,147.34,106.25458123]
[1746620353347,14.57236621,147.42,147.34,89.28702321]
[1746620353731,14.57236621,147.42,147.34,105.30702321]
[1746620354440,31.5307165,147.42,147.34,22.80702321]
[1746620358440,30.0245165,147.42,147.34,22.80702321]
[1746620363760,32.78310606,147.43,147.35,20.24374886]
[1746620364148,32.78310606,147.43,147.35,1.5941]
[1746620365169,49.74030608,147.43,147.35,8.38043211]
[1746620366167,6.78380028,147.41,147.35,6.78633211]
[1746620369867,6.78380028,147.41,147.35,25.43598097]
[1746620373594,6.78351685,147.42,147.35,25.43598097]
[1746620373803,6.78351685,147.42,147.35,27.03038097]
[1746620383311,6.78351685,147.42,147.37,6.78564158]
[1746620384913,1.5041,147.45,147.37,6.78564158]
[1746620385078,6.1348,147.46,147.38,18.64964886]
[1746620386188,12.91649986,147.46,147.38,101.14964886]
[1746620386398,18.6038726,147.49,147.38,101.14964886]
[1746620386599,26.0,147.48,147.38,101.14964886]
[1746620387802,32.78058041,147.48,147.39,6.7847208]
[1746620390406,32.78058041,147.48,147.4,18.64964886]
[1746620390705,32.78058041,147.48,147.41,16.0]
[1746620393241,32.78058041,147.48,147.42,6.78334011]
[1746620400631,1.6533,147.49,147.42,6.78334011]
[1746620400936,6.2988,147.5,147.42,6.78334011]
[1746620401833,13.07870863,147.5,147.42,23.7416904]
[1746620402232,26.0,147.51,147.44,6.78241996]
[1746620402619,26.0,147.51,147.44,23.73846987]
[1746620403118,8.39938318,147.52,147.44,23.73846987]
[1746620403438,1.6202,147.52,147.45,18.64964886]
[1746620403736,6.7785075,147.53,147.46,15.88]
[1746620404429,6.7785075,147.53,147.47,6.78104021]
[1746620408525,6.77761995,147.55,147.48,18.64964886]
[1746620408737,6.77761995,147.55,147.48,22.04859058]
[1746620410036,8.3517753,147.56,147.48,22.04859058]
[1746620410332,6.7769753,147.56,147.48,104.54859058]
[1746620411031,6.7769753,147.56,147.49,6.78012068]
[1746620414434,6.7769753,147.56,147.5,6.77945574]
[1746620415152,6.77665433,147.57,147.5,6.77945574]
[1746620418644,12.98681328,147.58,147.5,106.22860828]
[1746620418826,12.98681328,147.58,147.5,107.76590828]
[1746620419347,32.77572658,147.59,147.51,34.50964886]
[1746620419641,23.35227671,147.61,147.55,18.64964886]
[1746620419642,13.19041876,147.61,147.55,18.64964886]
[1746620420847,13.19041876,147.61,147.55,25.42683266]
[1746620424650,6.4156,147.61,147.55,25.42683266]
[1746620425747,6.77376567,147.63,147.55,42.37024167]
[1746620426045,6.77376567,147.63,147.57,18.64964886]
[1746620426434,8.30033436,147.64,147.57,18.64964886]
[1746620428135,8.30033436,147.64,147.58,6.7759859]
[1746620428751,8.30033436,147.64,147.56,15.86]
[1746620429052,25.23341482,147.64,147.56,15.86]
[1746620430761,25.23341482,147.64,147.56,22.63683592]
[1746620431134,25.23341482,147.64,147.56,15.86]
[1746620434963,6.77139761,147.68,147.57,20.17254886]
[1746620435139,26.0,147.67,147.57,102.67254886]
[1746620435868,6.77231477,147.66,147.59,18.64964886]
[1746620437135,6.77231477,147.66,147.6,6.77506775]
[1746620437341,6.77139761,147.68,147.6,23.71273712]
[1746620437740,6.77139761,147.68,147.6,6.77506775]
[1746620438255,23.69989165,147.68,147.6,6.77506775]
[1746620438657,23.69989165,147.68,147.58,25.42563476]
[1746620441856,6.77139761,147.68,147.58,42.36559952]
[1746620442062,6.77139761,147.68,147.58,124.86559952]
[1746620442274,13.23465221,147.69,147.61,26.0]
[1746620442489,6.77115221,147.69,147.62,34.50964886]
[1746620442773,6.77048915,147.7,147.62,34.50964886]
[1746620443751,6.77002234,147.71,147.63,6.77369098]
[1746620444250,23.69507819,147.71,147.62,41.28367604]
[1746620446760,23.69507819,147.71,147.62,15.86]
[1746620447375,23.69507819,147.71,147.62,22.63404015]
[1746620449374,23.69507819,147.71,147.62,15.86]
[1746620455485,23.69507819,147.71,147.62,22.63395045]
[1746620457485,23.69507819,147.71,147.62,24.20655045]
[1746620459486,6.77002234,147.71,147.64,6.77323218]
[1746620460897,23.69507819,147.71,147.63,6.77369098]
[1746620464792,23.69507819,147.71,147.62,106.70656086]
[1746620464994,44.64964886,147.7,147.6,26.0]
[1746620465177,182.34964886,147.7,147.6,32.77505288]
[1746620465384,163.7,147.7,147.61,18.64964886]
[1746620466201,6.77093912,147.69,147.61,25.42399899]
[1746620467992,6.77093912,147.69,147.61,41.34399899]
[1746620470602,23.69828694,147.69,147.61,41.34399899]
[1746620470776,23.69828694,147.69,147.61,34.56964886]
[1746620470981,25.24438694,147.69,147.61,15.92]
[1746620474185,24.68684886,147.68,147.61,15.92]
[1746620474391,26.0,147.65,147.57,22.69626266]
[1746620475194,26.0,147.65,147.58,18.64964886]
[1746620475704,6.77323218,147.64,147.58,25.42535758]
[1746620480507,6.77323218,147.64,147.57,15.92]
[1746620480689,23.70631264,147.64,147.57,15.92]
[1746620480879,23.70631264,147.64,147.57,22.69632532]
[1746620481283,6.77323218,147.64,147.57,22.69632532]
[1746620483402,23.70631264,147.64,147.56,6.77686992]
[1746620483608,25.22061264,147.64,147.56,22.69686992]
[1746620485933,8.28753218,147.64,147.56,22.69686992]
[1746620486207,6.77323218,147.64,147.56,22.69686992]
[1746620486911,6.77323218,147.64,147.56,39.63913069]
[1746620487110,6.77289368,147.65,147.57,18.64964886]
[1746620488521,6.77231477,147.66,147.59,18.64964886]
[1746620489815,32.77200272,147.67,147.59,18.64964886]
[1746620490009,6.77200272,147.67,147.6,1.5696]
[1746620490314,6.77200272,147.67,147.61,15.92]
[1746620490702,6.77200272,147.67,147.62,6.77414984]
[1746620491611,152.14999674,147.68,147.62,6.77414984]
[1746620492026,144.47159674,147.68,147.62,6.77414984]
[1746620493021,32.77111354,147.69,147.62,6.77414984]
[1746620497428,6.77002234,147.71,147.63,18.64964886]
[1746620498327,6.77002234,147.71,147.64,6.77323218]
[1746620509340,6.77002234,147.71,147.66,6.77231477]
[1746620510739,6.77002234,147.71,147.65,15.92]
[1746620511237,6.77002234,147.71,147.65,22.69269824]
[1746620514139,6.77002234,147.71,147.64,6.77323218]
[1746620518937,6.77002234,147.71,147.66,6.77231477]
[1746620519946,40.93049151,147.72,147.66,6.77231477]
[1746620521445,40.93049151,147.72,147.65,6.77277345]
[1746620522446,40.93049151,147.72,147.64,6.77310468]
[1746620523750,57.85440161,147.72,147.63,22.69348269]
[1746620534958,14.93049151,147.72,147.64,18.64964886]
[1746620535746,13.27379151,147.72,147.64,18.64964886]
[1746620537268,13.27379151,147.72,147.65,6.77277345]
[1746620547857,13.27379151,147.72,147.65,22.63277345]
[1746620551277,13.21548443,147.72,147.65,22.63277345]
[1746620562285,13.21548443,147.72,147.65,6.77277345]
[1746620569205,6.76969151,147.72,147.65,8.37867345]
[1746620569417,6.76969151,147.72,147.66,18.64964886]
[1746620570615,6.76969151,147.72,147.67,6.77185616]
[1746620572235,32.76929866,147.73,147.67,6.77185616]
[1746620574221,6.76635766,147.79,147.68,52.30194886]
[1746620574400,6.76635766,147.79,147.69,15.86]
[1746620575421,6.76635766,147.79,147.71,18.64964886]
[1746620577636,6.76635766,147.79,147.72,6.76956404]
[1746620581139,23.68225183,147.79,147.71,6.76981827]
[1746620581327,23.68225183,147.79,147.69,15.86]
[1746620581328,1.5163,147.77,147.69,15.86]
[1746620581641,26.0,147.76,147.68,6.7712458]
[1746620581841,26.0,147.76,147.67,25.42128756]
[1746620582022,26.0,147.76,147.67,6.7716387]
[1746620583245,23.68866327,147.75,147.67,6.7716387]
[1746620584353,6.7691058,147.73,147.66,22.61210248]
[1746620584647,23.6918703,147.73,147.66,15.84]
[1746620586029,6.7691058,147.73,147.66,22.61220839]
[1746620587637,6.76864762,147.74,147.66,22.61220839]
[1746620591245,6.76864762,147.74,147.67,18.64964886]
[1746620591448,6.76864762,147.74,147.68,6.77139761]
[1746620591941,144.46839427,147.75,147.68,6.77139761]
[1746620592125,137.7,147.75,147.69,18.64964886]
[1746620592328,1.5163,147.77,147.69,18.64964886]
[1746620592850,6.76792511,147.76,147.69,18.64964886]
[1746620593228,8.28377705,147.77,147.7,6.7704807]
[1746620593434,1.5163,147.77,147.71,18.64964886]
[1746620593641,39.09758227,147.78,147.71,18.64964886]
[1746620593940,39.09758227,147.78,147.71,34.48964886]
[1746620595153,39.09758227,147.78,147.72,6.76956404]
[1746620596154,39.09758227,147.78,147.72,6.76956404]
[1746620596455,39.09758227,147.78,147.71,15.84]
[1746620596667,1.536,147.76,147.68,6.77114593]
[1746620597565,1.536,147.76,147.67,22.61142732]
[1746620598364,6.7681895,147.75,147.69,6.77093912]
[1746620598962,6.7681895,147.75,147.67,15.84]
[1746620599139,170.4681895,147.75,147.67,15.84]
[1746620599753,187.38866327,147.75,147.67,15.84]
[1746620603439,137.7,147.74,147.67,15.84]
[1746620604163,6.1911,147.73,147.64,34.33136074]
[1746620605461,6.76956404,147.72,147.64,34.33136074]
[1746620605869,6.76956404,147.72,147.61,25.42380528]
[1746620605870,1.5866,147.71,147.61,25.42380528]
[1746620606068,1.5866,147.71,147.62,15.84]
[1746620607364,23.69668246,147.7,147.62,15.84]
[1746620607873,23.69668246,147.7,147.62,22.61405556]
[1746620616261,6.7704807,147.7,147.63,18.64964886]
[1746620618574,6.77002234,147.71,147.65,18.64964886]
[1746620619780,6.76956404,147.72,147.66,6.77231477]
[1746620638012,6.76956404,147.72,147.65,42.82306816]
[1746620638313,23.69347414,147.72,147.65,17.4008]
[1746620638710,23.69347414,147.72,147.65,15.86]
[1746620639113,161.39347414,147.72,147.65,15.86]
[1746620639295,26.0,147.71,147.65,15.86]
[1746620639502,27.5301,147.71,147.61,26.95008294]
[1746620639706,27.5301,147.71,147.61,42.81008294]
[1746620640107,23.69668246,147.7,147.61,17.386]
[1746620641109,23.69668246,147.7,147.61,15.86]
[1746620641295,6.3158,147.69,147.61,15.86]
[1746620642208,6.77139761,147.68,147.61,22.63450573]
[1746620643126,23.40255217,147.67,147.62,23.40255217]
[1746620643735,30.17458221,147.67,147.62,30.17649769]
[1746620644920,30.17458221,147.67,147.63,23.40255217]
[1746620645799,6.77147286,147.68,147.65,23.40255217]
[1746620645999,6.76956404,147.72,147.67,23.40255217]
[1746620646201,56.17211621,147.72,147.68,23.40255217]
[1746620646418,30.17211621,147.72,147.68,23.40255217]
[1746620646697,6.76956404,147.72,147.69,23.40255217]
[1746620646922,174.28271212,147.73,147.69,23.40255217]
[1746620647099,167.87181212,147.73,147.69,23.40255217]
[1746620647310,6.76773145,147.76,147.7,23.40255217]
[1746620647521,23.40255217,147.75,147.7,23.40255217]
[1746620647706,23.40255217,147.74,147.7,23.40255217]
[1746620648126,32.76773145,147.76,147.7,23.40255217]
[1746620648306,23.40255217,147.74,147.7,23.40255217]
[1746620649422,6.7691058,147.73,147.7,23.40255217]
[1746620649822,6.7691058,147.73,147.69,23.40255217]
[1746620650027,23.40255217,147.72,147.67,1.6357]
[1746620650229,23.40255217,147.72,147.68,23.40255217]
[1746620651017,23.40255217,147.71,147.67,23.40255217]
[1746620651541,6.7704807,147.7,147.67,23.40255217]
[1746620652029,23.40255217,147.72,147.68,23.40255217]
[1746620652216,23.40255217,147.73,147.69,23.40255217]
[1746620653734,137.7,147.76,147.7,23.40255217]
[1746620654040,23.40255217,147.74,147.7,23.40255217]
[1746620654342,23.40255217,147.71,147.67,23.40255217]
[1746620655218,23.40255217,147.7,147.66,15.86]
[1746620655418,23.40255217,147.7,147.66,39.26255217]
[1746620656339,30.17349129,147.69,147.66,15.86]
[1746620658239,6.77093912,147.69,147.66,39.26255217]
[1746620658445,30.17349129,147.69,147.66,15.86]
[1746620658648,30.17349129,147.69,147.65,23.40255217]
[1746620658849,6.77093912,147.69,147.66,23.40255217]
[1746620659057,30.17257451,147.71,147.67,23.40255217]
[1746620659952,6.77002234,147.71,147.67,23.40255217]
[1746620660258,30.17182311,147.73,147.69,23.40255217]
[1746620660442,6.76927094,147.73,147.69,23.40255217]
[1746620660642,30.17182311,147.73,147.69,23.40255217]
[1746620660844,6.76927094,147.73,147.69,23.40255217]
[1746620661145,30.17182311,147.73,147.69,23.40255217]
[1746620661457,30.17139592,147.74,147.7,23.40255217]
[1746620661767,23.40255217,147.72,147.68,23.40255217]
[1746620662652,6.76980617,147.72,147.69,23.40255217]
[1746620666474,23.40255217,147.73,147.69,30.17342595]
[1746620666638,26.0,147.75,147.71,23.40255217]
[1746620666839,23.40255217,147.74,147.7,23.40255217]
[1746620668060,30.1712874,147.74,147.7,23.40255217]
[1746620669155,23.40255217,147.72,147.68,23.40255217]
[1746620670358,23.40255217,147.7,147.67,15.84]
[1746620671360,30.17328898,147.7,147.67,15.84]
[1746620672161,6.77073681,147.7,147.67,15.84]
[1746620673777,6.77073681,147.7,147.67,39.24255217]
[1746620674884,30.17328898,147.7,147.67,15.84]
[1746620675982,23.40255217,147.69,147.67,15.84]
[1746620677079,23.40255217,147.69,147.65,23.40255217]
[1746620677675,23.40255217,147.66,147.63,15.88]
[1746620678387,30.17503776,147.66,147.63,15.88]
[1746620678686,6.77103288,147.69,147.65,23.40255217]
[1746620678884,6.77103288,147.69,147.66,23.40255217]
[1746620679087,30.17317927,147.7,147.65,23.40255217]
[1746620679286,23.40255217,147.68,147.64,23.40255217]
[1746620679582,23.40255217,147.67,147.63,46.05610053]
[1746620679892,23.40255217,147.68,147.64,23.40255217]
[1746620680070,23.40255217,147.68,147.64,30.17549224]
[1746620680270,6.7706271,147.7,147.64,30.17549224]
[1746620680271,23.40255217,147.69,147.65,23.40255217]
[1746620681903,23.40255217,147.67,147.64,6.77294007]
[1746620682107,23.40255217,147.68,147.64,30.17549224]
[1746620682305,23.40255217,147.67,147.63,22.65353509]
[1746620682480,23.40255217,147.66,147.63,15.88]
[1746620683702,23.40255217,147.67,147.63,15.88]
[1746620683904,23.40255217,147.67,147.63,22.65368057]
[1746620684703,23.40255217,147.67,147.63,46.05623274]
[1746620684916,23.40255217,147.66,147.63,22.65368057]
[1746620687002,23.40255217,147.66,147.63,15.88]
[1746620687402,23.40255217,147.65,147.63,15.88]
[1746620687591,23.40255217,147.65,147.61,30.17694871]
[1746620687795,23.40255217,147.64,147.6,30.17747028]
[1746620688402,6.7725337,147.66,147.61,23.40255217]
[1746620688403,23.40255217,147.65,147.61,23.40255217]
[1746620688810,30.17543784,147.65,147.61,23.40255217]
[1746620689013,30.17543784,147.65,147.61,30.17714795]
[1746620689317,23.40255217,147.65,147.61,30.17714795]
[1746620689492,30.17502537,147.66,147.62,23.40255217]
[1746620689698,23.40255217,147.66,147.62,23.40255217]
[1746620690916,23.40255217,147.67,147.63,23.40255217]
[1746620691218,30.17415438,147.68,147.64,23.40255217]
[1746620693819,23.40255217,147.67,147.63,23.40255217]
[1746620694115,23.40255217,147.65,147.59,17.4175]
[1746620694316,23.40255217,147.65,147.61,23.40255217]
[1746620695824,6.77323218,147.64,147.61,23.40255217]
[1746620697296,30.17578435,147.64,147.6,23.40255217]
[1746620698217,6.77323218,147.64,147.61,23.40255217]
[1746620700722,23.69989165,147.68,147.61,23.40255217]
[1746620700937,23.40255217,147.65,147.61,23.40255217]
[1746620703829,30.17572581,147.65,147.61,23.40255217]
[1746620707227,6.77317364,147.65,147.62,23.40255217]
[1746620707527,6.77252183,147.66,147.63,23.40255217]
[1746620707915,6.77252183,147.66,147.62,23.40255217]
[1746620711237,30.175074,147.66,147.62,23.40255217]
[1746620711825,30.175074,147.66,147.61,6.77448022]
[1746620712027,30.175074,147.66,147.62,23.40255217]
[1746620712654,30.175074,147.66,147.59,24.19277894]
[1746620712821,23.40255217,147.63,147.59,22.65527894]
[1746620713020,23.40255217,147.64,147.6,23.40255217]
[1746620713941,30.17532562,147.65,147.61,23.40255217]
[1746620714430,6.77277345,147.65,147.62,23.40255217]
[1746620715143,6.77277345,147.65,147.63,23.40255217]
[1746620715446,6.77277345,147.65,147.62,23.40255217]
[1746620715941,6.77277345,147.65,147.61,6.77460876]
[1746620716126,6.77277345,147.65,147.62,23.40255217]
[1746620716331,6.77277345,147.65,147.61,6.77460876]
[1746620716532,6.77277345,147.65,147.62,23.40255217]
[1746620717139,6.77277345,147.65,147.61,30.17716093]
[1746620717341,30.17532562,147.65,147.61,23.40255217]
[1746620717841,30.17532562,147.65,147.6,8.34438562]
[1746620718138,30.17532562,147.65,147.61,23.40255217]
[1746620719145,6.77277345,147.65,147.61,23.40255217]
[1746620719842,23.69989165,147.68,147.61,23.40255217]
[1746620720040,23.40255217,147.66,147.61,23.40255217]
[1746620720538,23.69989165,147.68,147.6,6.77488562]
[1746620720539,23.40255217,147.65,147.6,6.77488562]
[1746620720740,23.40255217,147.65,147.6,30.17743779]
[1746620720944,23.69989165,147.68,147.63,23.40255217]
[1746620721115,47.10244382,147.68,147.63,23.40255217]
[1746620721318,6.77139761,147.68,147.63,23.40255217]
[1746620721541,6.77139761,147.68,147.64,23.40255217]
[1746620722645,6.77139761,147.68,147.65,23.40255217]
[1746620726548,16.92408502,147.72,147.67,23.40255217]
[1746620726726,23.40255217,147.7,147.66,23.40255217]
[1746620726928,23.40255217,147.7,147.6,15.9]
[1746620726929,23.40255217,147.67,147.6,15.9]
[1746620727230,23.40255217,147.64,147.6,15.9]
[1746620727439,23.40255217,147.64,147.6,39.30255217]
[1746620728229,30.17624315,147.63,147.6,15.9]
[1746620729923,23.40255217,147.62,147.57,1.5561]
[1746620730244,23.40255217,147.6,147.56,15.9]
[1746620730426,6.77552679,147.59,147.56,39.30255217]
[1746620730951,30.17807896,147.59,147.53,20.28024886]
[1746620731117,23.40255217,147.58,147.53,23.40255217]
[1746620731318,23.40255217,147.58,147.52,26.49547788]
[1746620731522,23.40255217,147.58,147.53,23.40255217]
[1746620731829,23.40255217,147.58,147.54,23.40255217]
[1746620732444,30.1787304,147.58,147.54,23.40255217]
[1746620733121,23.40255217,147.59,147.55,23.40255217]
[1746620733322,49.40255217,147.6,147.56,23.40255217]
[1746620733547,6.77414984,147.62,147.53,6.77828238]
[1746620733548,23.40255217,147.61,147.57,23.40255217]
[1746620734353,30.177526,147.61,147.57,23.40255217]
[1746620735353,30.177526,147.61,147.56,23.40255217]
[1746620735951,6.77497383,147.61,147.56,23.40255217]
[1746620736249,30.177526,147.61,147.56,23.40255217]
[1746620737649,23.40255217,147.58,147.53,6.77828238]
[1746620737860,23.40255217,147.57,147.53,23.40255217]
[1746620738151,23.40255217,147.56,147.52,39.30255217]
[1746620738330,23.40255217,147.56,147.52,15.9]
[1746620738530,23.40255217,147.56,147.52,39.30255217]
[1746620738832,23.40255217,147.55,147.52,15.9]
[1746620739653,30.17993466,147.55,147.52,15.9]
[1746620740043,23.40255217,147.54,147.5,23.40255217]
[1746620740548,23.40255217,147.53,147.49,40.93445217]
[1746620740734,6.77701408,147.56,147.51,23.40255217]
[1746620740940,30.17956625,147.56,147.52,23.40255217]
[1746620741763,30.17956625,147.56,147.49,15.9]
[1746620741964,30.17956625,147.56,147.52,23.40255217]
[1746620742261,6.77701408,147.56,147.51,23.40255217]
[1746620742439,23.40255217,147.55,147.51,23.40255217]
[1746620743360,30.17992982,147.55,147.51,30.18171266]
[1746620743663,23.40255217,147.52,147.46,84.0128]
[1746620743876,23.40255217,147.5,147.46,31.69680645]
[1746620744038,49.72078666,147.55,147.48,23.40255217]
[1746620744345,23.40255217,147.52,147.48,23.40255217]
[1746620745064,23.40255217,147.53,147.48,23.40255217]
[1746620747465,6.77874186,147.52,147.48,23.40255217]
[1746620747771,6.7773636,147.55,147.51,23.40255217]
[1746620748066,6.7773636,147.55,147.52,23.40255217]
[1746620748266,6.77708281,147.56,147.52,23.40255217]
[1746620748463,6.77708281,147.56,147.53,23.40255217]
[1746620749270,30.17899724,147.57,147.53,23.40255217]
[1746620749469,6.77644507,147.57,147.53,23.40255217]
[1746620749671,30.17899724,147.57,147.53,23.40255217]
[1746620750473,23.40255217,147.56,147.52,23.40255217]
[1746620750679,23.40255217,147.54,147.5,23.40255217]
[1746620751874,23.40255217,147.53,147.49,15.92]
[1746620752068,23.40255217,147.52,147.49,15.92]
[1746620752369,23.40255217,147.51,147.49,15.92]
[1746620752571,30.18205824,147.51,147.49,15.92]
[1746620752763,6.77950607,147.51,147.48,23.40255217]
[1746620754481,6.77950607,147.51,147.46,52.94378273]
[1746620754482,30.18205824,147.51,147.46,1.5128]
[1746620754779,30.18205824,147.51,147.47,23.40255217]
[1746620755479,30.18205824,147.51,147.46,1.5128]
[1746620755684,30.18205824,147.51,147.47,23.40255217]
[1746620756877,23.40255217,147.5,147.46,23.40255217]
[1746620757069,23.40255217,147.49,147.45,39.32255217]
[1746620757266,23.40255217,147.47,147.45,15.92]
[1746620757471,23.40255217,147.48,147.45,15.92]
[1746620757886,23.40255217,147.49,147.45,39.32255217]
[1746620760385,6.78058041,147.48,147.45,39.32255217]
[1746620761386,6.78058041,147.48,147.45,15.92]
[1746620761786,6.78058041,147.48,147.45,39.32255217]
[1746620762087,6.78058041,147.48,147.45,15.92]
[1746620762287,6.78058041,147.48,147.45,39.32255217]
[1746620762479,23.72720493,147.51,147.45,39.32255217]
[1746620762786,23.40255217,147.49,147.45,39.32255217]
[1746620763580,23.72720493,147.51,147.46,23.40255217]